fUST/lending_fUST_20240822
["ID","MTS","AMOUNT","RATE_DAILY","PERIOD"]
[335554319,1724324265824,-500.0,0.00021369,7]
[335554320,1724324265866,-558.44,0.00021369,7]
[335554321,1724324265906,-500.0,0.00021369,7]
[335554322,1724324265944,-869.24,0.00021369,7]
[335554323,1724324265981,-500.0,0.00021369,7]
[335554324,1724324266019,-3096.63,0.00021369,7]
[335554325,1724324266058,-500.0,0.00021369,7]
[335554326,1724324266097,-1902.33,0.00021369,7]
[335554327,1724324266136,-791.13,0.00021369,7]
[335554328,1724324266178,-500.0,0.00021369,7]
[335554329,1724324266216,-455.63346334,0.00021369,7]
[335554330,1724324266255,-500.0,0.00021369,7]
[335554331,1724324266295,-500.0,0.00021369,7]
[335554332,1724324266338,-574.45,0.00021369,7]
[335554333,1724324266380,-500.0,0.00021369,7]
[335554334,1724324266417,-500.0,0.00021369,7]
[335554335,1724324266589,-2089.94,0.00021369,7]
[335554336,1724324266641,-291.35922496,0.00021369,7]
[335554337,1724324266678,-500.0,0.00021369,7]
[335554338,1724324266714,-500.0,0.00021369,7]
[335554339,1724324266751,-372.93730687,0.00021369,7]
[335554340,1724324266787,-500.0,0.00021369,7]
[335554341,1724324266827,-689.5,0.00021369,7]
[335554342,1724324266867,-2333.16,0.00021369,7]
[335554343,1724324266906,-500.0,0.00021369,7]
[335554344,1724324266943,-500.0,0.00021369,7]
[335554345,1724324266982,-1011.01,0.00021369,7]
[335554346,1724324267021,-500.0,0.00021369,7]
[335554347,1724324267061,-3043.97,0.00021369,7]
[335554348,1724324267098,-500.0,0.00021369,7]
[335554349,1724324267136,-500.0,0.00021369,7]
[335554350,1724324267180,-500.0,0.00021369,7]
[335554351,1724324267226,-1289.91,0.00021369,7]
[335554352,1724324267266,-707.31,0.00021369,7]
[335554353,1724324267308,-500.0,0.00021369,7]
[335554354,1724324267350,-227.53226746,0.00021369,7]
[335554355,1724324267390,-500.0,0.00021369,7]
[335554356,1724324267434,-480.19791946,0.00021369,7]
[335554357,1724324267477,-500.0,0.00021369,7]
[335554358,1724324267516,-3687.12,0.00021369,7]
[335554359,1724324267554,-500.0,0.00021369,7]
[335554360,1724324267590,-500.0,0.00021369,7]
[335554361,1724324267628,-500.0,0.00021369,7]
[335554362,1724324267670,-4890.50751995,0.00021369,7]
[335554363,1724324270343,-200.0,0.00023,60]
[335554364,1724324270403,-94389.45383376,0.00024,60]
[335554365,1724324271362,-19477.37639414,0.00027,120]
[335554366,1724324292155,-1190.29098968,0.00019,7]
[335554367,1724324292197,-1000.0,0.00019,19]
[335554368,1724324292280,-500.0,0.00019726,7]
[335554369,1724324292319,-500.0,0.00019726,7]
[335554370,1724324292362,-500.0,0.00019726,7]
[335554371,1724324292403,-500.0,0.00019726,7]
[335554372,1724324292445,-500.0,0.00019726,7]
[335554373,1724324292484,-500.0,0.00019726,7]
[335554374,1724324292524,-3072.6,0.00019726,7]
[335554375,1724324292562,-500.0,0.00019726,7]
[335554376,1724324292598,-500.0,0.00019726,7]
[335554377,1724324292637,-500.0,0.00019726,7]
[335554378,1724324292672,-500.0,0.00019726,7]
[335554379,1724324292709,-500.0,0.00019726,7]
[335554380,1724324292746,-1000.0,0.0002,20]
[335554381,1724324292791,-26073.3792228,0.00020119,9]
[335554382,1724324292828,-500.0,0.00020273,7]
[335554383,1724324292866,-500.0,0.00020273,7]
[335554384,1724324292903,-500.0,0.00020273,7]
[335554385,1724324292940,-512.54859132,0.00020273,7]
[335554386,1724324292976,-500.0,0.00020273,7]
[335554387,1724324293011,-3072.6,0.00020273,7]
[335554388,1724324293047,-500.0,0.00020273,7]
[335554389,1724324293084,-642.16440652,0.00020273,7]
[335554390,1724324293120,-500.0,0.00020273,7]
[335554391,1724324293159,-500.0,0.00020273,7]
[335554392,1724324293198,-500.0,0.00020821,7]
[335554393,1724324293237,-500.0,0.00020821,7]
[335554394,1724324293273,-500.0,0.00020821,7]
[335554395,1724324293307,-500.0,0.00020821,7]
[335554396,1724324293348,-3072.6,0.00020821,7]
[335554397,1724324293386,-583.95063006,0.00020821,7]
[335554398,1724324293425,-500.0,0.00020821,7]
[335554399,1724324293461,-500.0,0.00020821,7]
[335554400,1724324293504,-5806.87248005,0.00021369,7]
[335554401,1724324293542,-4980.64,0.00021369,7]
[335554402,1724324293577,-500.0,0.00021369,7]
[335554403,1724324293613,-2563.3,0.00021369,7]
[335554404,1724324293649,-9165.06,0.00021369,7]
[335554405,1724324293685,-500.0,0.00021369,7]
[335554406,1724324293721,-551.32,0.00021369,7]
[335554407,1724324293758,-1075.99,0.00021369,7]
[335554408,1724324293793,-500.0,0.00021369,7]
[335554409,1724324293830,-582.32854442,0.00021369,7]
[335554410,1724324293868,-1052.3,0.00021369,7]
[335554411,1724324293908,-500.0,0.00021369,7]
[335554412,1724324293945,-572.2,0.00021369,7]
[335554413,1724324293982,-501.52692164,0.00021369,7]
[335554414,1724324294020,-500.0,0.00021369,7]
[335554415,1724324294057,-500.0,0.00021369,7]
[335554416,1724324294305,-500.0,0.00021369,7]
[335554417,1724324294345,-500.0,0.00021369,7]
[335554418,1724324294383,-500.0,0.00021369,7]
[335554419,1724324294421,-500.0,0.00021369,7]
[335554420,1724324294459,-536.47,0.00021369,7]
[335554421,1724324294499,-500.0,0.00021369,7]
[335554422,1724324294538,-500.0,0.00021369,7]
[335554423,1724324294576,-500.0,0.00021369,7]
[335554424,1724324294619,-19495.74,0.00021369,7]
[335554425,1724324294657,-500.0,0.00021369,7]
[335554426,1724324294699,-500.0,0.00021369,7]
[335554427,1724324294739,-500.0,0.00021369,7]
[335554428,1724324294778,-500.0,0.00021369,7]
[335554429,1724324294817,-500.0,0.00021369,7]
[335554430,1724324294856,-500.0,0.00021369,7]
[335554431,1724324294897,-2437.93,0.00021369,7]
[335554432,1724324294947,-2015.18,0.00021369,7]
[335554433,1724324294985,-500.0,0.00021369,7]
[335554434,1724324295025,-522.41,0.00021369,7]
[335554435,1724324295064,-500.0,0.00021369,7]
[335554436,1724324295104,-780.01,0.00021369,7]
[335554437,1724324295145,-500.0,0.00021369,7]
[335554438,1724324295184,-500.0,0.00021369,7]
[335554439,1724324295223,-500.0,0.00021369,7]
[335554440,1724324295259,-990.04,0.00021369,7]
[335554441,1724324295296,-500.0,0.00021369,7]
[335554442,1724324295332,-500.0,0.00021369,7]
[335554443,1724324295369,-500.0,0.00021369,7]
[335554444,1724324295408,-500.0,0.00021369,7]
[335554445,1724324295447,-500.0,0.00021369,7]
[335554446,1724324295483,-557.49,0.00021369,7]
[335554447,1724324295517,-500.0,0.00021369,7]
[335554448,1724324295553,-2416.99,0.00021369,7]
[335554449,1724324295588,-500.0,0.00021369,7]
[335554450,1724324295624,-1469.72,0.00021369,7]
[335554451,1724324295660,-500.0,0.00021369,7]
[335554452,1724324295697,-500.0,0.00021369,7]
[335554453,1724324295732,-500.0,0.00021369,7]
[335554454,1724324295768,-416.0542279,0.00021369,7]
[335554455,1724324295804,-346.48780574,0.00021369,7]
[335554456,1724324295842,-222.68857607,0.00021369,7]
[335554457,1724324295881,-2885.52,0.00021369,7]
[335554458,1724324295922,-500.0,0.00021369,7]
[335554459,1724324295958,-500.0,0.00021369,7]
[335554460,1724324295996,-2831.04,0.00021369,7]
[335554461,1724324296036,-500.0,0.00021369,7]
[335554462,1724324296075,-500.0,0.00021369,7]
[335554463,1724324296118,-500.0,0.00021369,7]
[335554464,1724324296164,-500.0,0.00021369,7]
[335554465,1724324296202,-500.0,0.00021369,7]
[335554466,1724324296241,-3072.6,0.00021369,7]
[335554467,1724324296280,-301.20477676,0.00021369,7]
[335554468,1724324296321,-160.0,0.00021584,3]
[335554469,1724324296361,-6873.98128945,0.00021917,9]
[335554470,1724324296399,-500.0,0.00021917,7]
[335554471,1724324296437,-500.0,0.00021917,7]
[335554472,1724324296475,-500.0,0.00021917,7]
[335554473,1724324296512,-500.0,0.00021917,7]
[335554474,1724324296551,-502.83265415,0.00021917,7]
[335554475,1724324296588,-533.04800544,0.00021917,7]
[335554476,1724324296624,-500.0,0.00021917,7]
[335554477,1724324296665,-500.0,0.00021917,7]
[335554478,1724324296703,-676.95,0.00021917,7]
[335554479,1724324296744,-500.0,0.00021917,7]
[335554480,1724324296788,-530.51293937,0.00021917,7]
[335554481,1724324296827,-500.0,0.00021917,7]
[335554482,1724324296868,-551.79519223,0.00021917,7]
[335554483,1724324296907,-500.0,0.00021917,7]
[335554484,1724324296950,-500.0,0.00021917,7]
[335554485,1724324296987,-500.0,0.00021917,7]
[335554486,1724324297026,-500.0,0.00021917,7]
[335554487,1724324297063,-500.0,0.00021917,7]
[335554488,1724324297098,-607.64972,0.00021917,7]
[335554489,1724324297134,-500.0,0.00021917,7]
[335554490,1724324297173,-500.0,0.00021917,7]
[335554491,1724324297209,-897.49,0.00021917,7]
[335554492,1724324297249,-500.0,0.00021917,7]
[335554493,1724324297286,-500.0,0.00021917,7]
[335554494,1724324297328,-500.0,0.00021917,7]
[335554495,1724324297368,-500.0,0.00021917,7]
[335554496,1724324297406,-500.0,0.00021917,7]
[335554497,1724324297443,-500.0,0.00021917,7]
[335554498,1724324297479,-915.75,0.00021917,7]
[335554499,1724324297515,-500.0,0.00021917,7]
[335554500,1724324297551,-536.56,0.00021917,7]
[335554501,1724324297588,-522.49,0.00021917,7]
[335554502,1724324297624,-500.0,0.00021917,7]
[335554503,1724324297659,-500.0,0.00021917,7]
[335554504,1724324297699,-890.6,0.00021917,7]
[335554505,1724324297734,-500.0,0.00021917,7]
[335554506,1724324297769,-500.0,0.00021917,7]
[335554507,1724324297805,-500.0,0.00021917,7]
[335554508,1724324297845,-500.0,0.00021917,7]
[335554509,1724324297882,-500.0,0.00021917,7]
[335554510,1724324297930,-517.80949468,0.00021917,7]
[335554511,1724324297973,-500.0,0.00021917,7]
[335554512,1724324298010,-1567.48,0.00021917,7]
[335554513,1724324298048,-795.06,0.00021917,7]
[335554514,1724324298086,-500.0,0.00021917,7]
[335554515,1724324298123,-500.0,0.00021917,7]
[335554516,1724324298161,-500.0,0.00021917,7]
[335554517,1724324298204,-500.0,0.00021917,7]
[335554518,1724324298242,-500.0,0.00021917,7]
[335554519,1724324298281,-500.0,0.00021917,7]
[335554520,1724324298512,-500.0,0.00021917,7]
[335554521,1724324298550,-558.34,0.00021917,7]
[335554522,1724324298586,-374.42913587,0.00021917,7]
[335554523,1724324298621,-500.0,0.00021917,7]
[335554524,1724324298658,-500.0,0.00021917,7]
[335554525,1724324298695,-960.82,0.00021917,7]
[335554526,1724324298739,-606.16,0.00021917,7]
[335554527,1724324298778,-500.0,0.00021917,7]
[335554528,1724324298818,-500.0,0.00021917,7]
[335554529,1724324298858,-500.0,0.00021917,7]
[335554530,1724324298898,-500.0,0.00021917,7]
[335554531,1724324298938,-1153.42,0.00021917,7]
[335554532,1724324298975,-500.0,0.00021917,7]
[335554533,1724324299014,-763.72,0.00021917,7]
[335554534,1724324299053,-500.0,0.00021917,7]
[335554535,1724324299092,-500.0,0.00021917,7]
[335554536,1724324299133,-500.0,0.00021917,7]
[335554537,1724324299177,-500.0,0.00021917,7]
[335554538,1724324299217,-500.0,0.00021917,7]
[335554539,1724324299258,-500.0,0.00021917,7]
[335554540,1724324299301,-247.6770041,0.00021917,7]
[335554541,1724324299346,-500.0,0.00021917,7]
[335554542,1724324299390,-500.0,0.00021917,7]
[335554543,1724324299432,-500.0,0.00021917,7]
[335554544,1724324299476,-500.0,0.00021917,7]
[335554545,1724324299518,-500.0,0.00021917,7]
[335554546,1724324299561,-500.0,0.00021917,7]
[335554547,1724324299602,-549.84111169,0.00021917,7]
[335554548,1724324299643,-500.0,0.00021917,7]
[335554549,1724324299685,-500.0,0.00021917,7]
[335554550,1724324299730,-500.0,0.00021917,7]
[335554551,1724324299771,-500.0,0.00021917,7]
[335554552,1724324299811,-600.68,0.00021917,7]
[335554553,1724324299851,-534.87,0.00021917,7]
[335554554,1724324299892,-500.0,0.00021917,7]
[335554555,1724324299932,-500.0,0.00021917,7]
[335554556,1724324299971,-656.62,0.00021917,7]
[335554557,1724324300008,-305.84541578,0.00021917,7]
[335554558,1724324300046,-500.0,0.00021917,7]
[335554559,1724324300084,-500.0,0.00021917,7]
[335554560,1724324300123,-500.0,0.00021917,7]
[335554561,1724324300161,-1808.0,0.00021917,7]
[335554562,1724324300202,-231.85869266,0.00021917,7]
[335554563,1724324300241,-500.0,0.00021917,7]
[335554564,1724324300281,-500.0,0.00021917,7]
[335554565,1724324300319,-503.8,0.00021917,7]
[335554566,1724324300362,-500.0,0.00021917,7]
[335554567,1724324300406,-500.0,0.00021917,7]
[335554568,1724324300451,-500.0,0.00021917,7]
[335554569,1724324300491,-500.0,0.00021917,7]
[335554570,1724324300547,-500.0,0.00021917,7]
[335554571,1724324300588,-500.0,0.00021917,7]
[335554572,1724324300626,-500.0,0.00021917,7]
[335554573,1724324300667,-569.65,0.00021917,7]
[335554574,1724324300704,-500.0,0.00021917,7]
[335554575,1724324300745,-500.0,0.00021917,7]
[335554576,1724324300784,-590.42,0.00021917,7]
[335554577,1724324300824,-500.0,0.00021917,7]
[335554578,1724324300865,-500.0,0.00021917,7]
[335554579,1724324300903,-666.47,0.00021917,7]
[335554580,1724324300945,-500.0,0.00021917,7]
[335554581,1724324300985,-1414.31,0.00021917,7]
[335554582,1724324301026,-500.0,0.00021917,7]
[335554583,1724324301065,-500.0,0.00021917,7]
[335554584,1724324301102,-800.01,0.00021917,7]
[335554585,1724324301140,-500.0,0.00021917,7]
[335554586,1724324301182,-500.0,0.00021917,7]
[335554587,1724324301219,-500.0,0.00021917,7]
[335554588,1724324301257,-697.61,0.00021917,7]
[335554589,1724324301294,-500.0,0.00021917,7]
[335554590,1724324301333,-500.0,0.00021917,7]
[335554591,1724324301371,-558.44,0.00021917,7]
[335554592,1724324301411,-500.0,0.00021917,7]
[335554593,1724324301448,-500.0,0.00021917,7]
[335554594,1724324301490,-1902.33,0.00021917,7]
[335554595,1724324301531,-507.66676447,0.00021917,7]
[335554596,1724324301569,-574.45,0.00021917,7]
[335554597,1724324301606,-500.0,0.00021917,7]
[335554598,1724324301643,-500.0,0.00021917,7]
[335554599,1724324301680,-2089.94,0.00021917,7]
[335554600,1724324301717,-500.0,0.00021917,7]
[335554601,1724324301755,-500.0,0.00021917,7]
[335554602,1724324301793,-500.0,0.00021917,7]
[335554603,1724324301834,-1011.01,0.00021917,7]
[335554604,1724324301876,-500.0,0.00021917,7]
[335554605,1724324301918,-500.0,0.00021917,7]
[335554606,1724324301960,-1289.91,0.00021917,7]
[335554607,1724324301999,-500.0,0.00021917,7]
[335554608,1724324302041,-707.31,0.00021917,7]
[335554609,1724324302081,-162.91224631,0.00021917,7]
[335554610,1724324302122,-500.0,0.00021917,7]
[335554611,1724324302163,-500.0,0.00021917,7]
[335554612,1724324302205,-500.0,0.00021917,7]
[335554613,1724324302247,-10697.38,0.00021917,7]
[335554614,1724324302288,-4980.64,0.00021917,7]
[335554615,1724324302327,-505.26828167,0.00021917,7]
[335554616,1724324302368,-2563.3,0.00021917,7]
[335554617,1724324302409,-9165.06,0.00021917,7]
[335554618,1724324302448,-545.94674996,0.00021917,7]
[335554619,1724324302487,-551.32,0.00021917,7]
[335554620,1724324302525,-500.0,0.00021917,7]
[335554621,1724324302562,-1075.99,0.00021917,7]
[335554622,1724324302598,-1052.3,0.00021917,7]
[335554623,1724324302792,-500.0,0.00021917,7]
[335554624,1724324302864,-572.2,0.00021917,7]
[335554625,1724324302904,-500.0,0.00021917,7]
[335554626,1724324302942,-500.0,0.00021917,7]
[335554627,1724324302978,-152.93592561,0.00021917,7]
[335554628,1724324303014,-500.0,0.00021917,7]
[335554629,1724324303050,-500.0,0.00021917,7]
[335554630,1724324303088,-500.0,0.00021917,7]
[335554631,1724324303127,-536.47,0.00021917,7]
[335554632,1724324303165,-500.0,0.00021917,7]
[335554633,1724324303205,-500.0,0.00021917,7]
[335554634,1724324303243,-19495.74,0.00021917,7]
[335554635,1724324303279,-500.0,0.00021917,7]
[335554636,1724324303319,-500.0,0.00021917,7]
[335554637,1724324303355,-500.0,0.00021917,7]
[335554638,1724324303397,-500.0,0.00021917,7]
[335554639,1724324303438,-500.0,0.00021917,7]
[335554640,1724324303474,-503.43674514,0.00021917,7]
[335554641,1724324303513,-2437.93,0.00021917,7]
[335554642,1724324303550,-2015.18,0.00021917,7]
[335554643,1724324303586,-500.0,0.00021917,7]
[335554644,1724324303622,-522.41,0.00021917,7]
[335554645,1724324303658,-500.0,0.00021917,7]
[335554646,1724324303696,-780.01,0.00021917,7]
[335554647,1724324303733,-500.0,0.00021917,7]
[335554648,1724324303769,-283.54435037,0.00021917,7]
[335554649,1724324303804,-500.0,0.00021917,7]
[335554650,1724324303839,-990.04,0.00021917,7]
[335554651,1724324303876,-500.0,0.00021917,7]
[335554652,1724324303913,-405.43513594,0.00021917,7]
[335554653,1724324303952,-500.0,0.00021917,7]
[335554654,1724324303992,-500.0,0.00021917,7]
[335554655,1724324304030,-500.0,0.00021917,7]
[335554656,1724324304068,-557.49,0.00021917,7]
[335554657,1724324304106,-500.0,0.00021917,7]
[335554658,1724324304143,-2416.99,0.00021917,7]
[335554659,1724324304181,-500.0,0.00021917,7]
[335554660,1724324304219,-1469.72,0.00021917,7]
[335554661,1724324304259,-500.0,0.00021917,7]
[335554662,1724324304299,-500.0,0.00021917,7]
[335554663,1724324304341,-500.0,0.00021917,7]
[335554664,1724324304380,-2885.52,0.00021917,7]
[335554665,1724324304418,-500.0,0.00021917,7]
[335554666,1724324304468,-500.0,0.00021917,7]
[335554667,1724324304507,-2831.04,0.00021917,7]
[335554668,1724324304547,-500.0,0.00021917,7]
[335554669,1724324304586,-504.49327451,0.00021917,7]
[335554670,1724324304624,-500.0,0.00021917,7]
[335554671,1724324304662,-500.0,0.00021917,7]
[335554672,1724324304709,-500.0,0.00021917,7]
[335554673,1724324304746,-3072.6,0.00021917,7]
[335554674,1724324304787,-1000.0,0.00022,22]
[335554675,1724324304826,-160.0,0.00022223,4]
[335554676,1724324304866,-300.0,0.000224,10]
[335554677,1724324304908,-500.0,0.00022465,7]
[335554678,1724324304951,-500.0,0.00022465,7]
[335554679,1724324304990,-214.32513322,0.00022465,7]
[335554680,1724324305030,-500.0,0.00022465,7]
[335554681,1724324305069,-500.0,0.00022465,7]
[335554682,1724324305107,-500.0,0.00022465,7]
[335554683,1724324305145,-676.95,0.00022465,7]
[335554684,1724324305182,-500.0,0.00022465,7]
[335554685,1724324305220,-503.17493515,0.00022465,7]
[335554686,1724324305257,-500.0,0.00022465,7]
[335554687,1724324305293,-362.20469045,0.00022465,7]
[335554688,1724324305332,-500.0,0.00022465,7]
[335554689,1724324305372,-500.0,0.00022465,7]
[335554690,1724324305415,-500.0,0.00022465,7]
[335554691,1724324305454,-500.0,0.00022465,7]
[335554692,1724324305490,-500.0,0.00022465,7]
[335554693,1724324305527,-897.49,0.00022465,7]
[335554694,1724324305563,-500.0,0.00022465,7]
[335554695,1724324305600,-500.0,0.00022465,7]
[335554696,1724324305638,-500.0,0.00022465,7]
[335554697,1724324305678,-500.0,0.00022465,7]
[335554698,1724324305713,-500.0,0.00022465,7]
[335554699,1724324305750,-500.0,0.00022465,7]
[335554700,1724324305787,-915.75,0.00022465,7]
[335554701,1724324305823,-500.0,0.00022465,7]
[335554702,1724324305867,-536.56,0.00022465,7]
[335554703,1724324305904,-522.49,0.00022465,7]
[335554704,1724324305945,-552.41095681,0.00022465,7]
[335554705,1724324305983,-500.0,0.00022465,7]
[335554706,1724324306021,-890.6,0.00022465,7]
[335554707,1724324306056,-511.87803151,0.00022465,7]
[335554708,1724324306093,-500.0,0.00022465,7]
[335554709,1724324306130,-500.0,0.00022465,7]
[335554710,1724324306167,-500.0,0.00022465,7]
[335554711,1724324306203,-500.0,0.00022465,7]
[335554712,1724324306245,-500.0,0.00022465,7]
[335554713,1724324306286,-1567.48,0.00022465,7]
[335554714,1724324306327,-795.06,0.00022465,7]
[335554715,1724324306368,-500.0,0.00022465,7]
[335554716,1724324306407,-500.0,0.00022465,7]
[335554717,1724324306447,-500.0,0.00022465,7]
[335554718,1724324306484,-500.0,0.00022465,7]
[335554719,1724324306522,-500.0,0.00022465,7]
[335554720,1724324306558,-344.64581466,0.00022465,7]
[335554721,1724324306596,-500.0,0.00022465,7]
[335554722,1724324306632,-558.34,0.00022465,7]
[335554723,1724324306670,-500.0,0.00022465,7]
[335554724,1724324306709,-500.0,0.00022465,7]
[335554725,1724324306746,-960.82,0.00022465,7]
[335554726,1724324306782,-606.16,0.00022465,7]
[335554727,1724324306984,-500.0,0.00022465,7]
[335554728,1724324307027,-500.0,0.00022465,7]
[335554729,1724324307069,-500.0,0.00022465,7]
[335554730,1724324307110,-500.0,0.00022465,7]
[335554731,1724324307149,-1153.42,0.00022465,7]
[335554732,1724324307189,-500.0,0.00022465,7]
[335554733,1724324307230,-763.72,0.00022465,7]
[335554734,1724324307267,-500.0,0.00022465,7]
[335554735,1724324307305,-500.0,0.00022465,7]
[335554736,1724324307347,-500.0,0.00022465,7]
[335554737,1724324307388,-380.69088406,0.00022465,7]
[335554738,1724324307430,-500.0,0.00022465,7]
[335554739,1724324307468,-500.0,0.00022465,7]
[335554740,1724324307505,-500.0,0.00022465,7]
[335554741,1724324307542,-500.0,0.00022465,7]
[335554742,1724324307581,-500.0,0.00022465,7]
[335554743,1724324307618,-500.0,0.00022465,7]
[335554744,1724324307654,-500.0,0.00022465,7]
[335554745,1724324307692,-500.0,0.00022465,7]
[335554746,1724324307729,-506.59982409,0.00022465,7]
[335554747,1724324307766,-500.0,0.00022465,7]
[335554748,1724324307804,-545.08723218,0.00022465,7]
[335554749,1724324307842,-500.0,0.00022465,7]
[335554750,1724324307878,-600.68,0.00022465,7]
[335554751,1724324307918,-534.87,0.00022465,7]
[335554752,1724324307956,-487.59689212,0.00022465,7]
[335554753,1724324307992,-488.47575837,0.00022465,7]
[335554754,1724324308028,-656.62,0.00022465,7]
[335554755,1724324308066,-500.0,0.00022465,7]
[335554756,1724324308106,-500.0,0.00022465,7]
[335554757,1724324308144,-500.0,0.00022465,7]
[335554758,1724324308182,-1808.0,0.00022465,7]
[335554759,1724324308220,-500.0,0.00022465,7]
[335554760,1724324308259,-500.0,0.00022465,7]
[335554761,1724324308299,-503.8,0.00022465,7]
[335554762,1724324308341,-500.0,0.00022465,7]
[335554763,1724324308379,-500.0,0.00022465,7]
[335554764,1724324308419,-500.0,0.00022465,7]
[335554765,1724324308460,-500.0,0.00022465,7]
[335554766,1724324308502,-500.0,0.00022465,7]
[335554767,1724324308539,-505.92897921,0.00022465,7]
[335554768,1724324308575,-500.0,0.00022465,7]
[335554769,1724324308616,-569.65,0.00022465,7]
[335554770,1724324308652,-589.11155438,0.00022465,7]
[335554771,1724324308688,-590.42,0.00022465,7]
[335554772,1724324308725,-500.0,0.00022465,7]
[335554773,1724324308762,-453.80772744,0.00022465,7]
[335554774,1724324308800,-666.47,0.00022465,7]
[335554775,1724324308835,-500.0,0.00022465,7]
[335554776,1724324308871,-1414.31,0.00022465,7]
[335554777,1724324308908,-500.0,0.00022465,7]
[335554778,1724324308946,-500.0,0.00022465,7]
[335554779,1724324308982,-800.01,0.00022465,7]
[335554780,1724324309024,-500.0,0.00022465,7]
[335554781,1724324309060,-500.0,0.00022465,7]
[335554782,1724324309099,-500.0,0.00022465,7]
[335554783,1724324309136,-697.61,0.00022465,7]
[335554784,1724324309176,-500.0,0.00022465,7]
[335554785,1724324309214,-500.0,0.00022465,7]
[335554786,1724324309252,-558.44,0.00022465,7]
[335554787,1724324309292,-500.0,0.00022465,7]
[335554788,1724324309332,-500.0,0.00022465,7]
[335554789,1724324309371,-1902.33,0.00022465,7]
[335554790,1724324309410,-574.45,0.00022465,7]
[335554791,1724324309448,-500.0,0.00022465,7]
[335554792,1724324309485,-500.0,0.00022465,7]
[335554793,1724324309524,-2089.94,0.00022465,7]
[335554794,1724324309561,-500.0,0.00022465,7]
[335554795,1724324309598,-500.0,0.00022465,7]
[335554796,1724324309637,-500.0,0.00022465,7]
[335554797,1724324309677,-1011.01,0.00022465,7]
[335554798,1724324309714,-500.0,0.00022465,7]
[335554799,1724324309753,-500.0,0.00022465,7]
[335554800,1724324309792,-1289.91,0.00022465,7]
[335554801,1724324309831,-500.0,0.00022465,7]
[335554802,1724324309875,-707.31,0.00022465,7]
[335554803,1724324309918,-500.0,0.00022465,7]
[335554804,1724324309964,-500.0,0.00022465,7]
[335554805,1724324310003,-526.44753574,0.00022465,7]
[335554806,1724324310049,-10697.38,0.00022465,7]
[335554807,1724324310089,-4980.64,0.00022465,7]
[335554808,1724324310126,-2563.3,0.00022465,7]
[335554809,1724324310165,-9165.06,0.00022465,7]
[335554810,1724324310207,-551.32,0.00022465,7]
[335554811,1724324310245,-500.0,0.00022465,7]
[335554812,1724324310284,-1075.99,0.00022465,7]
[335554813,1724324310324,-1052.3,0.00022465,7]
[335554814,1724324310366,-500.0,0.00022465,7]
[335554815,1724324310405,-572.2,0.00022465,7]
[335554816,1724324310443,-500.0,0.00022465,7]
[335554817,1724324310482,-500.0,0.00022465,7]
[335554818,1724324310520,-500.0,0.00022465,7]